[Event "13th Chennai Open 2022"]
[Site "Chennai"]
[Date "2022.06.21"]
[Round "4.17"]
[White "Madhavan R Munjanattu"]
[Black "Karthikeyan, P.."]
[Result "1/2-1/2"]
[ECO "A44"]
[WhiteElo "1779"]
[BlackElo "2361"]
[Annotator "TA"]
[PlyCount "67"]
[EventDate "2022.06.19"]
[EventType "swiss"]
[EventCountry "IND"]
[SourceTitle "playchess.com"]
[Source "ChessBase"]
[SourceQuality "1"]
[TimeControl "5400+30"]

{[%evp 9,67,96,106,87,88,54,51,54,66,63,72,45,47,48,70,58,102,105,100,91,109,113,112,105,108,106,103,56,109,106,127,110,119,64,64,54,83,29,89,89,102,102,92,102,140,129,133,124,118,86,112,54,53,0,0,0,0,0,0,0]} 1. d4 {[%emt 0:00:04]} c5 {[%emt 0:00:46]} 2. d5 {[%emt 0:00:38]} e5 {[%emt 0:01:04]} 3. e4 {[%emt 0:01:19]} d6 {[%emt 0:00:07]} 4. Nc3 {[%emt 0:00:36]} a6 {[%emt 0:01:05]} 5. a4 {[%emt 0:00:05]} g6 {[%emt 0:00:07]} 6. g3 {[%emt 0:01:38] A44: Semi-Benoni.} Bg7 {[%emt 0:00:48]} 7. Bh3 {[%emt 0:05:14]} Bxh3 {[%emt 0:01:35]} 8. Nxh3 {[%emt 0:00:05] White is slightly better.} Qc8 {[%emt 0:00:41]} 9. Ng5 {[%emt 0:00:05] [#]} Nf6 $146 {[%emt 0:02:58]} ({Predecessor:} 9... h6 10. Nf3 Ne7 11. Nd2 Nd7 12. Nc4 Qc7 13. O-O Rb8 14. a5 O-O 15. f4 exf4 16. Bxf4 {0-1 (35) Stefanopoulos,O (2246)-Managadze,N (2444) Athens 2006}) 10. Be3 {[%emt 0:03:38]} O-O {[%emt 0:02:11]} 11. Nf3 {[%emt 0:02:35]} Nbd7 {[%emt 0:06:15][%cal Ob7b5]} 12. Nd2 {[%emt 0:00:32]} Ne8 {[%emt 0:02:00] [#]} 13. g4 $1 {[%emt 0:01:09]} b6 {[%emt 0:02:12]} 14. f3 {[%emt 0:02:36]} Qd8 {[%emt 0:05:32]} 15. h4 {[%emt 0:02:06]} Bf6 {[%emt 0:00:50]} 16. h5 {[%emt 0:07:15]} ({Don't play} 16. g5 Be7 $14) 16... Bg5 {[%emt 0:03:23]} 17. Bxg5 {[%emt 0:03:04]} Qxg5 {[%emt 0:00:25]} 18. Nc4 {[%emt 0:03:00]} ({White should play} 18. Qe2 $16) 18... Rb8 {[%emt 0:02:42]} (18... f5 $14) 19. Qd2 $16 {[%emt 0:02:30]} Qxd2+ {[%emt 0:16:12]} 20. Kxd2 {[%emt 0:00:17]} Kg7 {[%emt 0:02:04]} 21. hxg6 {[%emt 0:09:17]} (21. Nd1 $16) 21... fxg6 $14 {[%emt 0:01:32]} 22. Ke3 {[%emt 0:00:41]} Ndf6 {[%emt 0:05:37]} 23. Ra3 {[%emt 0:03:25]} (23. g5 $16) 23... Rf7 {[%emt 0:03:35]} (23... h6 $11 {remains equal.}) 24. g5 {[%emt 0:06:32]} Nh5 {[%emt 0:05:26]} 25. Rb3 {[%emt 0:00:33] Active counter play!} Rfb7 {[%emt 0:00:09][%cal Bf7b7,Bb7b6,Bb6a6][%mdl 32]} (25... Ng3 $2 26. Rh3 Nh5 27. Rxb6 Rxb6 28. Nxb6 $18) 26. Ne2 {[%emt 0:04:25]} b5 {[%emt 0:02:09]} 27. axb5 {[%emt 0:04:45]} axb5 {[%emt 0:00:19]} 28. Na5 {[%emt 0:00:05]} Rb6 {[%emt 0:00:15]} 29. Nc6 {[%emt 0:00:35]} Ra8 {[%emt 0:00:14]} 30. Rb1 {[%emt 0:00:15]} ({White should try} 30. f4 $16) 30... Nc7 {[%emt 0:02:35]} 31. Ra3 {[%emt 0:00:49]} (31. Rc3 $14) 31... Rxa3+ $11 {[%emt 0:00:59] The position is equal.} 32. bxa3 {[%emt 0:00:01] [#] aiming for c4.} Ra6 {[%emt 0:00:43]} 33. Rb3 {[%emt 0:00:46][%cal Oc2c4] Hoping for c4!} c4 {[%emt 0:03:09]} 34. Rc3 {[%emt 0:01:14] Weighted Error Value: White=0.14 (very precise) /Black=0.12 (very precise)} 1/2-1/2

[Event "13th Chennai Open 2022"]
[Site "Chennai"]
[Date "2022.06.21"]
[Round "4.18"]
[White "Patil Priyanshu"]
[Black "Konguvel, Ponnuswamy"]
[Result "1/2-1/2"]
[ECO "B27"]
[WhiteElo "1796"]
[BlackElo "2331"]
[Annotator "TA"]
[PlyCount "86"]
[EventDate "2022.06.19"]
[EventType "swiss"]
[EventCountry "IND"]
[SourceTitle "playchess.com"]
[Source "ChessBase"]
[SourceQuality "1"]
[TimeControl "5400+30"]

{[%evp 14,86,16,12,14,17,11,14,12,16,10,0,20,28,59,30,53,29,46,58,54,0,0,-12,-10,-11,-17,-48,-25,-137,-105,-172,-146,-181,-160,-147,-84,-69,-68,-85,-12,-28,-10,-13,0,-25,10,14,12,0,0,0,0,0,0,-39,0,0,0,0,0,0,102,103,97,107,100,99,92,77,348,348,322,247,184]} 1. e4 {[%emt 0:00:04]} c5 {[%emt 0:00:13]} 2. Nc3 {[%emt 0:00:08]} g6 {[%emt 0:00:47]} 3. d4 {[%emt 0:00:06]} cxd4 {[%emt 0:00:36]} 4. Qxd4 {[%emt 0:00:03]} Nf6 {[%emt 0:00:08]} 5. Nf3 {[%emt 0:00:05]} Nc6 {[%emt 0:00:16]} 6. Qa4 {[%emt 0:00:02]} d6 {[%emt 0:00:39]} 7. e5 {[%emt 0:00:02]} dxe5 {[%emt 0:00:48]} 8. Nxe5 {[%emt 0:00:03] With the idea Bc4.} Bg7 {[%emt 0:00:47] B27: Sicilian: 2 Nf3, unusual Black 2nd moves.} 9. Bb5 {[%emt 0:00:10]} O-O {[%emt 0:00:30]} 10. Nxc6 {[%emt 0:00:05]} bxc6 {[%emt 0:00:04] The position is equal.} 11. Bxc6 {[%emt 0:00:05]} Bd7 {[%emt 0:01:03]} 12. O-O {[%emt 0:04:48]} Bxc6 {[%emt 0:07:24]} 13. Qxc6 {[%emt 0:00:13]} Rb8 {[%emt 0:00:36][%cal Ba8b8,Bb8b4,Bb4d4][%mdl 32]} 14. Rb1 {[%emt 0:15:51]} Qa5 {[%emt 0:03:54] [#]} 15. Bf4 $146 {[%emt 0:08:05]} ({Predecessor:} 15. Qf3 Nd7 16. Bf4 e5 17. Bd2 Rfc8 18. Nd5 Qd8 19. Bb4 Nc5 20. Rfd1 a5 21. Bxa5 Qxa5 {1-0 (38) Ruperez Benito,A (2329)-Librelato,K (2100) Escaldes 2018}) 15... Rfc8 {[%emt 0:19:27]} 16. Qf3 {[%emt 0:00:36]} Rb4 {[%emt 0:07:00]} 17. Qh3 {[%emt 0:19:22]} ({White should play} 17. Bd2 $14) 17... e6 $11 {[%emt 0:04:35]} 18. Bd2 {[%emt 0:08:17]} Rd4 {[%emt 0:12:00][%mdl 1024] Black has compensation.} 19. Be3 {[%emt 0:01:10]} Rdc4 {[%emt 0:01:29]} 20. Rfd1 {[%emt 0:06:09]} Ng4 {[%emt 0:02:02]} 21. Rd3 {[%emt 0:11:44]} (21. Bd2 $1 $11) 21... Be5 {[%emt 0:09:05]} (21... Bxc3 22. bxc3 Qxa2 23. Rf1 $17) 22. Rbd1 {[%emt 0:10:17]} (22. g3 $17) 22... Bxh2+ {[%emt 0:01:17]} (22... Bxc3 23. bxc3 Nxe3 24. Qxe3 $17) 23. Kf1 {[%emt 0:00:17]} Be5 {[%emt 0:00:41]} 24. Bd4 {[%emt 0:00:33]} Bxd4 {[%emt 0:06:13]} (24... h5 $142 $1 {Strongly threatening ...Bxd4.} 25. Bxe5 Nxe5) 25. Rxd4 $17 {[%emt 0:00:03]} Qf5 {[%emt 0:00:10][%csl Gg4][%cal Rf5f2]} 26. Qg3 {[%emt 0:04:52]} Nf6 {[%emt 0:00:13]} ({Black should try} 26... h5 $17 {...h4 is the strong threat.} 27. Rxc4 Rxc4) 27. Qd3 $11 {[%emt 0:00:48]} Rxd4 {[%emt 0:07:01]} 28. Qxd4 {[%emt 0:00:02]} Ng4 {[%emt 0:00:36][%cal Oc8c4] White must now prevent ...Rc4!} 29. Rd2 {[%emt 0:02:44]} Rc5 {[%emt 0:03:40]} (29... Qh5 $5 {[%cal Rh5h1]}) 30. f3 {[%emt 0:02:38]} Nf6 {[%emt 0:01:13]} 31. Qd3 {[%emt 0:01:15]} Qh5 {[%emt 0:01:10]} 32. Qd8+ {[%emt 0:00:41]} (32. Qd4 $5 {[%cal Rd4f6]} Qg5 33. Rd1 $11) 32... Kg7 {[%emt 0:00:01] Hoping for ...Qh1+.} 33. Qd4 $1 {[%emt 0:00:06]} Re5 {[%emt 0:03:04]} 34. Kf2 {[%emt 0:00:01]} a5 {[%emt 0:01:42]} (34... Rf5 $5 {[%cal Re6e5]} 35. Kg1 Qh6 $15) 35. Re2 {[%emt 0:01:52]} Rg5 {[%emt 0:03:09] aiming for ...Qh1.} 36. Ne4 {[%emt 0:02:35]} Qh4+ {[%emt 0:00:36]} 37. Kf1 {[%emt 0:00:01] Really sharp!} ({Of course not} 37. g3 Qh2+ 38. Kf1 (38. Ke1 Qh1+ 39. Kf2 e5 $17) 38... Qh1+ 39. Kf2 Qh2+ 40. Ke1 Qh1+ 41. Kf2 (41. Kd2 $2 Rd5 $19) 41... e5 $17) 37... e5 {[%emt 0:00:13] [#]} (37... Qh1+ $11 {remains equal.} 38. Qg1 Nxe4 $1 39. Rxe4 Qxg1+ 40. Kxg1 Rd5) 38. Qf2 $1 $36 {[%emt 0:03:37][%mdl 2048] Keeping Black busy. White is more active.} Qh1+ {[%emt 0:00:51]} 39. Qg1 {[%emt 0:00:00]} Nxe4 {[%emt 0:02:22]} 40. Qxh1 {[%emt 0:00:00]} Ng3+ {[%emt 0:00:08]} 41. Kg1 {[%emt 0:00:00][%cal Oh1h4] Threatens to win with Qh4!} Nxe2+ $4 {[%emt 0:00:53][%mdl 8192]} ({Less strong is} 41... Rh5 {[#]} 42. Qxh5 $1 Nxe2+ 43. Kf2 gxh5 44. Kxe2 $16) (41... Nxh1 $16 {keeps fighting.} 42. Kxh1 Kf6) 42. Kf2 $18 {[%emt 0:00:00]} Nf4 {[%emt 0:02:54]} 43. g4 {[%emt 0:02:30]} f5 {[%emt 0:00:30] Never resign too early!  Weighted Error Value: White=0.16 (very precise) /Black=0.30} 1/2-1/2

[Event "13th Chennai Open 2022"]
[Site "Chennai"]
[Date "2022.06.22"]
[Round "5.1"]
[White "Srijit Paul"]
[Black "Savchenko, Boris"]
[Result "1/2-1/2"]
[ECO "B81"]
[WhiteElo "2399"]
[BlackElo "2524"]
[Annotator "TA"]
[PlyCount "109"]
[EventDate "2022.06.19"]
[EventType "swiss"]
[EventCountry "IND"]
[SourceTitle "playchess.com"]
[Source "ChessBase"]
[SourceQuality "1"]
[TimeControl "5400+30"]

{[%evp 15,109,27,42,41,41,41,43,51,47,45,39,48,126,126,133,114,118,99,99,100,99,94,100,100,155,147,142,154,135,138,145,157,164,140,173,138,168,127,138,116,152,146,181,186,181,111,131,112,110,100,322,174,234,114,123,125,196,141,219,200,244,206,201,165,172,178,357,254,257,195,194,199,195,195,189,175,212,192,191,110,119,132,246,246,242,237,254,239,230,143,118,0,219,0,114,0]} 1. e4 {[%emt 0:08:03]} c5 {[%emt 0:08:00]} 2. Nf3 {[%emt 0:00:11]} d6 {[%emt 0:00:07]} 3. d4 {[%emt 0:00:07]} cxd4 {[%emt 0:00:05]} 4. Nxd4 {[%emt 0:00:09]} Nf6 {[%emt 0:00:04]} 5. Nc3 {[%emt 0:00:08]} a6 {[%emt 0:00:04]} 6. h3 {[%emt 0:00:25]} e6 {[%emt 0:00:07]} 7. g4 {[%emt 0:00:04]} h6 {[%emt 0:00:04]} 8. Bg2 {[%emt 0:00:05]} Nc6 {[%emt 0:01:48]} 9. Nxc6 {[%emt 0:04:23] B81: Sicilian Scheveningen: Keres Attack.} bxc6 {[%emt 0:00:08]} 10. e5 {[%emt 0:00:03]} dxe5 {[%emt 0:19:12]} 11. Bxc6+ {[%emt 0:06:46] White is slightly better.} Bd7 {[%emt 0:00:07]} 12. Bxa8 {[%emt 0:03:05]} Qxa8 {[%emt 0:00:08]} 13. Rg1 {[%emt 0:00:23] [#]} h5 $146 {[%emt 0:07:44]} ({Black should try} 13... Bc6 $14) ({Predecessor:} 13... Nd5 14. Nxd5 exd5 15. Qf3 Bd6 16. Bd2 Bc6 17. Qg3 d4 18. O-O-O O-O 19. g5 h5 {½-½ (47) Van Leeuwen,E (2493)-Genga,S (2436) ICCF email 2016}) 14. g5 $16 {[%emt 1:13:38]} Nd5 {[%emt 0:06:20]} 15. Bd2 {[%emt 0:00:00]} Ne7 {[%emt 0:18:58]} 16. Qe2 {[%emt 0:00:00]} Ng6 {[%emt 0:00:48]} 17. O-O-O {[%emt 0:00:00]} Bc6 {[%emt 0:00:52] Inhibits Ne4.} 18. Qc4 {[%emt 0:00:00]} Be7 {[%emt 0:00:31]} 19. Be3 {[%emt 0:00:00]} O-O {[%emt 0:00:27]} (19... Bf3 $142) 20. Bc5 {[%emt 0:00:00]} Bxc5 {[%emt 0:07:50]} 21. Qxc5 {[%emt 0:00:00]} Bg2 {[%emt 0:00:49]} 22. Qe3 {[%emt 0:00:00]} h4 {[%emt 0:05:27]} 23. Ne2 {[%emt 0:00:00]} Rc8 {[%emt 0:05:53]} 24. Rd2 {[%emt 0:00:00]} Kh7 {[%emt 0:06:55]} 25. Re1 {[%emt 0:00:00]} Bf3 {[%emt 0:01:43]} 26. Ng1 {[%emt 0:00:00]} Bd5 {[%emt 0:01:24]} 27. Kb1 {[%emt 0:00:00]} a5 {[%emt 0:00:21]} 28. Ne2 {[%emt 0:00:00]} Bf3 {[%emt 0:00:49]} 29. Nc3 {[%emt 0:00:00]} Qc6 {[%emt 0:00:31] [#]} 30. Qa7 {[%emt 0:00:00] Against Rb8} (30. Nb5 $1 $18 {[%mdl 512] And now Na7 would win.} Bd5 31. a4 (31. Na7 Qc4 $16)) 30... Bg2 {[%emt 0:01:50]} 31. Re3 {[%emt 0:00:00]} ({Wrong is} 31. Qxf7 $2 Rc7 32. Qxc7 Qxc7 $19) 31... Qc4 {[%emt 0:02:36]} 32. Ne2 {[%emt 0:04:10] Threatens to win with Rc3.} ({But not} 32. Qxa5 $6 Qf1+ 33. Rd1 Qxf2 $11) 32... Ra8 $2 {[%emt 0:02:07]} (32... Qc5 $16 33. Qd7 (33. Qxf7 Rf8 $16) 33... Rc7) 33. Qd7 {[%emt 0:00:23]} (33. Qxf7 $142 Bd5 34. b3) 33... a4 {[%emt 0:01:18]} (33... Kg8 $142 34. a3 a4) 34. Qd3 {[%emt 0:01:03]} (34. Rc3 $18 Qb4 35. Qxf7) 34... Qxd3 {[%emt 0:00:49]} 35. Rdxd3 {[%emt 0:00:36]} e4 {[%emt 0:00:57]} (35... Nf4 $16) 36. Rd7 {[%emt 0:01:20]} (36. Ra3 $18) 36... Ne5 {[%emt 0:00:04]} (36... Rf8 $16 37. Kc1 e5) 37. Rc7 $18 {[%emt 0:00:04]} Rd8 {[%emt 0:00:37]} 38. Kc1 {[%emt 0:00:09] Inhibits Rd1+.} Bf3 {[%emt 0:01:56]} 39. b4 {[%emt 0:01:46]} axb3 {[%emt 0:00:00]} 40. axb3 {[%emt 0:00:04]} Ra8 $2 {[%emt 0:00:18]} (40... Kg6 41. Rc5 f6) 41. Kb2 {[%emt 0:00:14] aiming for Nc3.} Kg6 {[%emt 0:00:39]} 42. Nd4 {[%emt 0:00:47]} Bg2 {[%emt 0:00:06]} 43. Rc5 $1 {[%emt 0:01:04]} Nd7 {[%emt 0:00:16]} 44. Rb5 {[%emt 0:00:40]} e5 {[%emt 0:00:12]} 45. Nc6 {[%emt 0:00:05] Rd5 is the strong threat.} f6 {[%emt 0:00:56]} 46. gxf6 {[%emt 0:00:33]} Kxf6 {[%emt 0:00:21]} 47. Nb4 {[%emt 0:00:25]} (47. Rd5 $18 Ke6 48. Rxd7 $1 {[%mdl 512]} Kxd7 49. Nxe5+ Ke6 50. Ng6) 47... g5 {[%emt 0:00:58][%cal Og5g4]} 48. Nd5+ {[%emt 0:00:58]} Kg6 {[%emt 0:00:10]} (48... Kf7 $16) 49. Rb7 $1 {[%emt 0:00:16]} Rd8 {[%emt 0:00:20][%cal Og5g4]} 50. Ne7+ {[%emt 0:00:14]} Kf6 {[%emt 0:01:05] [#]} 51. Nc6 {[%emt 0:01:36]} Rc8 {[%emt 0:00:03]} 52. Na7 {[%emt 0:00:05]} Rd8 {[%emt 0:00:04] [#]} 53. Nc6 {[%emt 0:00:18]} (53. b4 $1 $16) 53... Rc8 {[%emt 0:00:04]} 54. Na7 {[%emt 0:01:13]} (54. Rxd7 $18 Rxc6 55. b4) 54... Rd8 $16 {[%emt 0:00:04]} 55. Nc6 {[%emt 0:01:44] Weighted Error Value: White=0.30/Black=0.26 (precise)} (55. b4 $16) 1/2-1/2

[Event "13th Chennai Open 2022"]
[Site "Chennai"]
[Date "2022.06.22"]
[Round "5.2"]
[White "Stupak, Kirill"]
[Black "Abdyjapar, Asyl"]
[Result "1/2-1/2"]
[ECO "D17"]
[WhiteElo "2440"]
[BlackElo "2346"]
[Annotator "TA"]
[PlyCount "100"]
[EventDate "2022.06.19"]
[EventType "swiss"]
[EventCountry "IND"]
[SourceTitle "playchess.com"]
[Source "ChessBase"]
[SourceQuality "1"]
[TimeControl "5400+30"]

{[%evp 13,100,3,4,-5,-9,-25,-34,-14,-20,-29,0,0,0,-14,20,8,17,13,32,10,17,0,8,0,31,24,23,10,45,29,47,19,32,27,25,0,36,33,25,-5,-1,-1,-1,-2,-10,-11,0,0,0,0,13,18,38,38,62,20,66,0,31,31,31,31,31,0,31,31,31,0,31,0,31,31,31,31,31,0,31,31,31,31,31,8,31,31,46,31,33,31,57]} 1. d4 {[%emt 0:06:49]} d5 {[%emt 0:01:19]} 2. Nf3 {[%emt 0:00:17]} Nf6 {[%emt 0:00:05]} 3. c4 {[%emt 0:00:04]} c6 {[%emt 1:30:36]} 4. Nc3 {[%emt 0:00:04]} dxc4 {[%emt 0:00:00]} 5. a4 {[%emt 0:00:11]} Bf5 {[%emt 0:00:00]} 6. Ne5 {[%emt 0:00:40]} Nbd7 $1 {[%emt 0:00:00] 6...Nbd7 scores better than 6...e6.} 7. Nxc4 {[%emt 0:00:05]} Qc7 {[%emt 0:00:00]} 8. Qd2 {[%emt 0:00:52] D17: Slav Defence: 5 a4 Bf5: Lines with 6 Nh4 and 6 Ne5.} g6 {[%emt 0:00:00]} 9. Qf4 {[%emt 1:25:58]} Qxf4 {[%emt 0:00:00]} 10. Bxf4 {[%emt 0:00:00] Black is slightly better.} Bg7 {[%emt 0:00:00]} 11. e3 {[#]} O-O $146 {[%emt 0:00:00]} (11... Nh5 $5 {[%cal Rh5f4]}) ({Predecessor:} 11... Nd5 12. Nxd5 cxd5 13. Na5 O-O 14. Nxb7 e5 15. dxe5 Nxe5 16. Nd6 Nd3+ 17. Bxd3 Bxd3 {1-0 (41) Wojtaszek,R (2734)-Svane,R (2543) Berlin 2015}) 12. Be2 Nd5 {[%emt 0:04:30]} 13. Bg3 {[%emt 0:00:00]} a5 {[%emt 0:00:00]} 14. O-O {[%emt 0:00:00]} Rfc8 {[%emt 0:00:00]} 15. Rfd1 {[%emt 0:00:00]} Nb4 {[%emt 0:00:00]} 16. Rd2 {[%emt 0:00:00]} Be6 {[%emt 0:00:00]} 17. Rad1 {[%emt 0:00:00]} f5 {[%emt 0:00:00]} 18. Rc1 {[%emt 0:00:00]} g5 {[%emt 0:00:00]} 19. Rdd1 {[%emt 0:00:00]} Nd5 {[%emt 0:03:30]} 20. Nxd5 {[%emt 0:00:00]} Bxd5 {[%emt 0:00:00]} 21. Bd3 {[%emt 0:00:00]} Be6 {[%emt 0:00:00]} 22. b3 {[%emt 0:00:00]} Bf6 {[%emt 0:00:00]} 23. h3 {[%emt 0:00:00]} h5 {[%emt 0:00:00]} 24. Kf1 {[%emt 0:00:00]} h4 {[%emt 0:00:00]} 25. Bh2 {[%emt 0:00:00]} Kg7 {[%emt 0:00:00]} 26. f4 {[%emt 0:00:00]} gxf4 {[%emt 0:00:00]} 27. Bxf4 {[%emt 0:00:00]} b5 {[%emt 0:00:00]} 28. axb5 {[%emt 0:00:00]} cxb5 {[%emt 0:00:00]} 29. Nd2 {[%emt 0:00:00]} Rxc1 {[%emt 0:00:00]} 30. Rxc1 {[%emt 0:00:00]} a4 {[%emt 0:00:00]} 31. Bxb5 {[%emt 0:00:00]} axb3 {[%emt 0:00:00] [#]} 32. Nxb3 {[%emt 0:00:00]} Bxb3 {[%emt 0:00:00]} (32... Nb6 33. Nc5) 33. Bxd7 {[%emt 0:00:00]} Kg6 {[%emt 0:00:00]} 34. Bb5 {[%emt 0:00:00]} (34. Rc5 $5 {[%cal Rd7f5]}) 34... Bd5 {[%emt 0:00:00]} (34... e6 $11 {is more appropriate.}) 35. Be2 {[%emt 0:00:00]} (35. Bc6 $14 Rc8 {[#]} 36. Bc7 $1 (36. Bxd5 Rxc1+ 37. Ke2 Bg5 $17) 36... Bxc6 37. Rxc6) 35... Ra2 {[%emt 0:00:00][%cal Od5g2]} 36. Bf3 {[%emt 0:00:00]} Bxf3 {[%emt 0:00:00]} 37. gxf3 $14 {[%emt 0:00:00][%mdl 4096] Endgame KRB-KRB} Rb2 {[%emt 0:00:00]} 38. Re1 {[%emt 0:00:00]} Ra2 {[%emt 0:00:00]} 39. Re2 {[%emt 0:00:00]} Ra1+ {[%emt 0:00:00]} 40. Re1 {[%emt 0:00:00]} Ra2 {[%emt 0:00:00]} 41. Re2 {[%emt 0:00:00]} Ra1+ {[%emt 0:00:00]} 42. Kg2 {[%emt 0:00:00]} Rd1 {[%emt 0:00:00]} 43. Rc2 {[%emt 0:00:00]} Rb1 {[%emt 0:00:00]} 44. Re2 {[%emt 0:00:00]} Rd1 {[%emt 0:00:00]} 45. Kf2 {[%emt 0:00:00]} Rb1 {[%emt 0:00:00]} 46. Rd2 {[%emt 0:00:00]} Ra1 {[%emt 0:00:00]} 47. Ke2 {[%emt 0:00:00]} Rb1 {[%emt 0:00:00]} ({Don't do} 47... Rh1 48. Rd1 Rxd1 49. Kxd1 $16) 48. Ra2 {[%emt 0:00:00] White is slightly better.} Kh7 {[%emt 0:00:00]} 49. Kf2 {[%emt 0:00:00]} Kg6 {[%emt 0:00:00]} 50. Rc2 {[%emt 0:16:21]} Rb4 {[%emt 0:00:00] Weighted Error Value: White=0.13 (very precise) /Black=0.09 (flawless)} 1/2-1/2